fUSD/lending_fUSD_20260311
["ID","MTS","AMOUNT","RATE_DAILY","PERIOD"]
[408192479,1773202232327,-13133.82277302,0.0001529,2]
[408192480,1773202232338,-54337.65792922,0.0001529,2]
[408192483,1773202237373,-151.0,0.0001529,2]
[408192484,1773202237383,-151.0,0.0001529,2]
[408192485,1773202237393,-9513.08224299,0.0001529,2]
[408192491,1773202238364,-4056.31191729,0.0001529,2]
[408192492,1773202239803,-151.0,0.0001529,2]
[408192493,1773202239815,-199.32707867,0.0001529,2]
[408192494,1773202239825,-365382.19538039,0.0001529,2]
[408192495,1773202239835,-1856.91968678,0.00015321,2]
[408192496,1773202239845,-1467.0,0.00015345,2]
[408192497,1773202239855,-684.0,0.00015375,2]
[408192498,1773202239865,-166.66,0.000154,2]
[408192499,1773202239874,-353.47861629,0.00015421,2]
[408192500,1773202239884,-636.665319,0.00015521,7]
[408192501,1773202239893,-328.0,0.00015625,2]
[408192502,1773202239903,-232.0,0.00015625,2]
[408192503,1773202239913,-1054.0,0.00015626,2]
[408192504,1773202239923,-278.0,0.00015626,2]
[408192505,1773202239932,-677.0,0.00015657,2]
[408192506,1773202239942,-304.29648094,0.00015657,2]
[408192507,1773202239953,-567.44,0.00015699,2]
[408192508,1773202239962,-166.66,0.00015699,2]
[408192509,1773202239972,-2577.66472369,0.0001572,2]
[408192510,1773202239982,-3365.4477379,0.00015731,2]
[408192511,1773202239991,-1000.0,0.00015821,2]
[408192512,1773202240000,-634.47331644,0.00015821,2]
[408192513,1773202240010,-1000.0,0.00015821,2]
[408192514,1773202240020,-353.47861625,0.00015919,2]
[408192515,1773202240031,-299.99,0.00016116,4]
[408192516,1773202240040,-150.99,0.00016116,2]
[408192517,1773202240050,-9999.99,0.00016116,2]
[408192518,1773202240061,-325.12,0.00016116,2]
[408192519,1773202240070,-1034.04,0.00016182,2]
[408192520,1773202240080,-200.0,0.00016182,2]
[408192521,1773202240090,-12849.1500965,0.000162,5]
[408192522,1773202240099,-296.98389022,0.00016238,2]
[408192523,1773202240109,-3365.4477379,0.00016252,2]
[408192525,1773202240118,-158.06316195,0.00016338,2]
[408192526,1773202240128,-300.74190287,0.00016345,2]
[408192527,1773202240137,-193.0,0.00016355,2]
[408192528,1773202240147,-500.0,0.00016368,2]
[408192529,1773202240156,-1000.0,0.00016368,2]
[408192530,1773202240165,-420.0,0.00016398,2]
[408192531,1773202240175,-460.0,0.00016402,2]
[408192532,1773202240184,-353.47861625,0.00016416,2]
[408192533,1773202240193,-2387.61904,0.00016427,2]
[408192534,1773202240202,-237.18143312,0.00016427,2]
[408192535,1773202240212,-300.0,0.00016427,2]
[408192536,1773202240222,-250.0,0.00016427,2]
[408192537,1773202240231,-5000.0,0.00016427,2]
[408192538,1773202240240,-250.0,0.00016427,2]
[408192539,1773202240250,-300.0,0.00016427,2]
[408192540,1773202240259,-567.44,0.00016447,2]
[408192541,1773202240268,-1680.0,0.00016481,2]
[408192542,1773202240277,-166.66,0.00016667,2]
[408192543,1773202240286,-3365.4477379,0.00016773,2]
[408192544,1773202240295,-353.47861625,0.00016914,2]
[408192545,1773202240304,-312391.96934228,0.00017,2]
[408192546,1773202240317,-503.0,0.00017,2]
[408192547,1773202240326,-1007.84311103,0.00017042,2]
[408192548,1773202240335,-296.98389022,0.00017069,2]
[408192549,1773202240345,-54257.45528292,0.000171,2]
[408192550,1773202240355,-10971.29428194,0.0001711,2]
[408192551,1773202240364,-567.44,0.00017194,2]
[408192552,1773202240374,-166.66,0.00017217,2]
[408192553,1773202240384,-3365.4477379,0.00017294,2]
[408192554,1773202240393,-6163.82,0.00017332,2]
[408192555,1773202240402,-353.47861625,0.00017412,2]
[408192556,1773202240411,-2000.0,0.00017423,2]
[408192557,1773202240420,-2032.82,0.00017423,2]
[408192558,1773202240429,-701.45818653,0.000177,2]
[408192559,1773202240439,-166.66,0.00017767,2]
[408192560,1773202240448,-3365.4477379,0.00017816,2]
[408192561,1773202240458,-1007.29218035,0.0001786,2]
[408192562,1773202240467,-1229.03787992,0.0001789,2]
[408192563,1773202240476,-1076.97554217,0.0001789,2]
[408192564,1773202240485,-296.98389022,0.000179,2]
[408192565,1773202240495,-353.47861625,0.00017909,2]
[408192566,1773202240504,-682.141414,0.0001792,7]
[408192567,1773202240513,-567.44,0.00017942,2]
[408192568,1773202240523,-20000.0,0.0001799,2]
[408192569,1773202240532,-9731.36429166,0.00018,5]
[408192570,1773202240541,-24370.65473499,0.00018,2]
[408192588,1773202242629,-215.97534263,0.00016773,2]
[408192589,1773202242638,-230.04627788,0.00018,2]
[408192590,1773202242651,-2206.02923407,0.00018,2]
[408192591,1773202242664,-722.8955016,0.00018,2]
[408192592,1773202242675,-2446.61604084,0.00018,2]
[408192593,1773202242685,-1937.27221359,0.00018,2]
[408192594,1773202242709,-2406.53133596,0.00018,2]
[408192596,1773202245348,-2772.74325605,0.00018,2]
[408192597,1773202245512,-2503.12623852,0.00018,2]
[408192601,1773202338343,167.42836757,9.859e-05,2]
[408192602,1773202338370,332.57163243,9.859e-05,2]
[408192603,1773202338819,500.0,9.859e-05,2]
[408192604,1773202339399,554.5751417,9.859e-05,2]
[408192605,1773202342869,612.85322587,9.859e-05,2]
[408192606,1773202342891,128.581726,9.859e-05,2]
[408192607,1773202345121,317.92491189,9.859e-05,2]
[408192608,1773202345145,351.81499407,9.859e-05,2]
[408192609,1773202346613,500.0,9.859e-05,2]
[408192610,1773202347565,500.0,9.859e-05,2]
[408192611,1773202348087,866.25534909,9.859e-05,2]
[408192612,1773202348891,507.45359249,9.859e-05,2]
[408192613,1773202352656,500.0,9.859e-05,2]
[408192614,1773202353621,507.65021538,9.859e-05,2]
[408192615,1773202779279,1000.0,0.0002,120]
[408192616,1773202785225,1000.0,0.0002,120]
[408192935,1773203363154,-228.52400652,0.00014029,2]
[408192936,1773203363177,-154.26624585,0.00014079,2]
[408192937,1773203374028,511.16,7.147e-05,2]
[408192938,1773203374236,511.16,7.523e-05,2]
[408192939,1773203374444,511.16,7.899e-05,2]
[408192940,1773203374649,511.16,8.275e-05,2]
[408192941,1773203375044,511.16,8.651e-05,2]
[408192942,1773203375275,511.16,9.027e-05,2]
[408192943,1773203375480,511.16,9.403e-05,2]
[408192944,1773203375680,511.16,9.78e-05,2]
[408192945,1773203375863,511.16,0.00010156,2]
[408192946,1773203376057,511.16,0.00010532,2]
[408192947,1773203376274,511.16,0.00010908,2]
[408192948,1773203376486,511.16,0.00011284,2]
[408192949,1773203376687,511.16,0.0001166,2]
[408192950,1773203376883,473.57084304,0.00012036,2]
[408192951,1773203376908,37.58915696,0.00012036,2]
[408192952,1773203377089,511.16,0.00012413,2]
[408192953,1773203377321,511.16,0.00012789,2]
[408192954,1773203377512,511.16,0.00013165,2]
[408192968,1773203431668,-511.16,0.00013541,2]
[408192969,1773203431678,-5828.94849375,0.00013817,2]
[408192970,1773203431687,-511.16,0.00013917,2]
[408192971,1773203431696,-5149.091178,0.00014008,2]
[408192972,1773203431707,-95.73375415,0.00014079,2]
[408192973,1773203431720,-480.0,0.00014129,2]
[408192974,1773203431729,-1200.0,0.00014145,2]
[408192975,1773203431740,-250.0,0.00014146,2]
[408192976,1773203431749,-300.0,0.00014228,2]
[408192977,1773203431758,-511.16,0.00014293,2]
[408192978,1773203431767,-1311.06,0.00014308,2]
[408192979,1773203431775,-436.570505,0.00014319,7]
[408192980,1773203431784,-228.5240065,0.00014551,2]
[408192981,1773203431793,-447.0,0.00014633,2]
[408192982,1773203431802,-1311.06,0.00014666,2]
[408192983,1773203431811,-636.0,0.0001473,2]
[408192984,1773203431819,-150.15274684,0.00014895,2]
[408192985,1773203431828,-193.0,0.00014895,2]
[408192986,1773203431837,-173.79385884,0.00014895,2]
[408192987,1773203431846,-150.0,0.00014999,2]
[408192988,1773203431855,-250.0,0.00015,2]
[408192989,1773203431863,-500.0,0.00015,30]
[408192990,1773203431872,-601.01344403,0.00015,30]
[408192991,1773203431881,-500.0,0.00015,30]
[408192992,1773203431889,-500.0,0.00015,30]
[408192993,1773203431898,-500.0,0.00015,30]
[408192994,1773203431907,-650.75817212,0.00015,30]
[408192995,1773203431919,-500.0,0.00015,30]
[408192996,1773203431928,-500.0,0.00015,30]
[408192997,1773203431937,-500.0,0.00015,30]
[408192998,1773203431946,-500.0,0.00015,30]
[408192999,1773203431955,-500.0,0.00015,30]
[408193000,1773203431966,-500.0,0.00015,30]
[408193001,1773203431975,-508.76593059,0.00015,30]
[408193002,1773203431984,-500.0,0.00015,30]
[408193003,1773203431993,-500.0,0.00015,30]
[408193004,1773203432003,-1311.06,0.00015024,2]
[408193005,1773203432012,-228.5240065,0.00015073,2]
[408193006,1773203432021,-530.0,0.00015088,2]
[408193007,1773203432030,-151.0,0.00015101,2]
[408193008,1773203432039,-151.0,0.00015101,2]
[408193009,1773203432048,-151.0,0.00015101,2]
[408193010,1773203432057,-151.0,0.00015101,2]
[408193011,1773203432066,-151.0,0.00015101,2]
[408193012,1773203432075,-151.0,0.00015101,2]
[408193013,1773203432085,-151.0,0.00015101,2]
[408193014,1773203432094,-151.0,0.00015101,2]
[408193015,1773203432103,-151.0,0.00015101,2]
[408193016,1773203432115,-151.0,0.00015101,2]
[408193017,1773203432124,-151.0,0.00015101,2]
[408193018,1773203432133,-500.0,0.00015172,2]
[408193019,1773203432142,-500.0,0.00015172,2]
[408193020,1773203432151,-500.0,0.00015172,2]
[408193021,1773203432161,-500.0,0.00015172,2]
[408193022,1773203432170,-500.0,0.00015172,2]
[408193023,1773203432180,-500.0,0.00015172,2]
[408193024,1773203432191,-500.0,0.00015172,2]
[408193025,1773203432201,-500.0,0.00015172,2]
[408193026,1773203432211,-500.0,0.00015172,2]
[408193027,1773203432221,-500.0,0.00015172,2]
[408193028,1773203432230,-500.0,0.00015172,2]
[408193029,1773203432239,-500.0,0.00015172,2]
[408193030,1773203432248,-500.0,0.00015172,2]
[408193031,1773203432258,-500.0,0.00015172,2]
[408193032,1773203432267,-573.01046681,0.00015172,2]
[408193033,1773203432275,-500.0,0.00015172,2]
[408193034,1773203432285,-500.0,0.00015172,2]
[408193035,1773203432295,-500.0,0.00015172,2]
[408193036,1773203432304,-500.0,0.00015172,2]
[408193037,1773203432313,-500.0,0.00015172,2]
[408193038,1773203432322,-500.0,0.00015172,2]
[408193039,1773203432331,-500.0,0.00015172,2]
[408193040,1773203432341,-500.0,0.00015172,2]
[408193041,1773203432350,-500.0,0.00015172,2]
[408193042,1773203432359,-500.0,0.00015172,2]
[408193043,1773203432369,-500.0,0.00015172,2]
[408193044,1773203432379,-500.0,0.00015172,2]
[408193045,1773203432388,-500.0,0.00015172,2]
[408193046,1773203432397,-500.0,0.00015172,2]
[408193047,1773203432407,-500.0,0.00015172,2]
[408193048,1773203432416,-500.0,0.00015172,2]
[408193049,1773203432426,-500.0,0.00015172,2]
[408193050,1773203432435,-500.0,0.00015172,2]
[408193051,1773203432444,-250.0,0.00015172,2]
[408193052,1773203432454,-500.0,0.00015173,2]
[408193053,1773203432463,-500.0,0.00015173,2]
[408193054,1773203432472,-500.0,0.00015173,2]
[408193055,1773203432481,-500.0,0.00015173,2]
[408193056,1773203432490,-219.45673384,0.00015173,2]
[408193057,1773203432509,-500.0,0.00015173,2]
[408193058,1773203432519,-500.0,0.00015173,2]
[408193059,1773203432529,-500.0,0.00015173,2]
[408193060,1773203432538,-232.0,0.00015272,2]
[408193061,1773203432548,-500.0,0.00015289,2]
[408193062,1773203432557,-556.99359659,0.00015354,2]
[408193063,1773203432566,-1029.0,0.00015372,2]
[408193064,1773203432575,-1311.06,0.00015382,2]
[408193065,1773203432585,-902.0,0.00015402,2]
[408193066,1773203432594,-250.0,0.00015432,2]
[408193067,1773203432604,-1072.0,0.00015463,2]
[408193068,1773203432613,-677.0,0.00015478,2]
[408193069,1773203432622,-172.0,0.00015478,2]
[408193070,1773203432631,-410.29648094,0.00015509,2]
[408193071,1773203432641,-1680.0,0.00015559,2]
[408193072,1773203432650,-568.51149629,0.00015631,2]
[408193073,1773203432659,-500.0,0.00015721,2]
[408193074,1773203432673,-1311.06,0.00015739,2]
[408193075,1773203432682,-898.62204915,0.00016016,2]
[408193076,1773203432691,-2109.58950211,0.00016016,2]
[408193077,1773203432701,-1289.64,0.00016106,2]
[408193078,1773203432711,-325.12,0.00016116,2]
[408193079,1773203432724,-6723.61403652,0.00016116,2]
[408193080,1773203432739,-3276.37596348,0.00016116,2]
[408193081,1773203432748,-150.99,0.00016116,2]
[408193082,1773203432757,-26873.48181895,0.00016116,2]
[408193083,1773203432769,-85364.94106416,0.00016116,2]
[408193132,1773203440087,-21293.61711689,0.00016116,2]
[408193133,1773203440096,-63311.55,0.00016116,2]
[408193134,1773203440106,-9999.99,0.00016116,2]
[408193135,1773203440115,-1021.09,0.00016116,2]
[408193136,1773203440124,-299.99,0.00016116,4]
[408193137,1773203440133,-2991.47,0.00016116,2]
[408193138,1773203440142,-7799.66,0.00016116,2]
[408193139,1773203440151,-9999.99,0.00016116,2]
[408193140,1773203440160,-3032.15,0.00016116,2]
[408193141,1773203440169,-430.4,0.00016116,2]
[408193142,1773203440178,-516.75,0.00016116,2]
[408193143,1773203440187,-150.99,0.00016116,2]
[408193144,1773203440196,-2917.19,0.00016116,2]
[408193145,1773203440205,-416.59,0.00016116,2]
[408193146,1773203440214,-5335.38,0.00016116,2]
[408193147,1773203440224,-255.0,0.00016124,2]
[408193148,1773203440232,-501.4437032,0.00016173,2]
[408193149,1773203440242,-500.0,0.00016173,2]
[408193150,1773203440251,-500.0,0.00016173,2]
[408193151,1773203440260,-502.26276919,0.00016173,2]
[408193152,1773203440269,-500.0,0.00016173,2]
[408193153,1773203440278,-500.0,0.00016173,2]
[408193154,1773203440287,-500.0,0.00016173,2]
[408193155,1773203440297,-500.0,0.00016173,2]
[408193156,1773203440307,-177.68,0.00016438,2]
[408193157,1773203440315,-898.62204907,0.00016448,2]
[408193158,1773203440325,-166.71,0.00016712,2]
[408193159,1773203440334,-500.0,0.00016721,2]
[408193160,1773203440344,-634.47331644,0.00016721,2]
[408193161,1773203440353,-1000.0,0.00016721,2]
[408193162,1773203440363,-1000.0,0.00016721,2]
[408193163,1773203440372,-534.1724515,0.00016732,2]
[408193164,1773203440382,-898.62204907,0.00016879,2]
[408193165,1773203440391,-500.0,0.00016921,2]
[408193166,1773203440401,-503.0,0.00017,2]
[408193167,1773203440410,-159.16633,0.000171,7]
[408193168,1773203440419,-2351.0,0.00017115,2]
[408193169,1773203440429,-545.713131,0.00017183,7]
[408193170,1773203440438,-1000.0,0.00017268,2]
[408193171,1773203440447,-1000.0,0.00017268,2]
[408193172,1773203440457,-898.62204907,0.00017311,2]
[408193173,1773203440466,-433.0,0.00017339,2]
[408193174,1773203440475,-250.0,0.00017407,2]
[408193175,1773203440484,-898.62204907,0.00017742,2]
[408193176,1773203440494,-5592.8341,0.000179,2]
[408193177,1773203440503,-1289.64,0.0001799,2]
[408193178,1773203440515,-277.79392261,0.00017999,2]
[408193179,1773203440524,-69928.38199963,0.00018,2]
[408193180,1773203440533,-1033.92764543,0.00018,2]
[408193181,1773203440542,-308.85729737,0.00018,2]
[408193182,1773203440551,-1003.1755031,0.00018,2]
[408193183,1773203440560,-898.62204907,0.00018174,2]
[408193184,1773203440569,-3240.0,0.00018221,2]
[408193185,1773203440578,-166.66,0.00018318,2]
[408193186,1773203440587,-898.62204907,0.00018605,2]
[408193187,1773203440596,-10112.14445066,0.000187,2]
[408193188,1773203440606,-1005.0,0.0001872,2]
[408193189,1773203440615,-2689.0,0.00018827,2]
[408193190,1773203440624,-166.66,0.00018868,2]
[408193191,1773203440634,-311.4,0.00018875,2]
[408193192,1773203440643,-4190.0,0.00019,2]
[408193193,1773203440652,-10167.62688041,0.00019,2]
[408193194,1773203440661,-2626.01024726,0.00019,2]
[408193195,1773203440674,-898.62204907,0.00019037,2]
[408193196,1773203440683,-1289.64,0.00019329,2]
[408193197,1773203440693,-364.52,0.00019339,2]
[408193198,1773203440703,-3592.30319556,0.00019339,2]
[408193199,1773203440717,-16407.68680444,0.00019339,2]
[408193200,1773203440726,-19742.04,0.000194,2]
[408193201,1773203440735,-166.66,0.00019418,2]
[408193202,1773203440747,-898.62204907,0.00019468,2]
[408193203,1773203440757,-5625.10591086,0.000195,3]
[408193204,1773203440767,-1129.91814869,0.000196,2]
[408193205,1773203440776,-1029.0365321,0.000196,2]
[408193206,1773203440785,-1081.63806781,0.000196,2]
[408193207,1773203440795,-1013.80405972,0.000196,2]
[408193208,1773203440804,-2000.0,0.00019601,2]
[408193209,1773203440813,-2054.42858037,0.00019701,7]
[408193210,1773203440822,-1000.0,0.000198,2]
[408193211,1773203440831,-1289.64,0.0001986,2]
[408193212,1773203440841,-17405.78691222,0.0001987,2]
[408193213,1773203440850,-758.01210753,0.000199,2]
[408193214,1773203440859,-158.06316195,0.000199,2]
[408193215,1773203440868,-898.62204907,0.000199,2]
[408193216,1773203440878,-890.95167066,0.000199,2]
[408193217,1773203440887,-361.37942272,0.000199,2]
[408193218,1773203440896,-2574.2423052,0.000199,2]
[408193219,1773203440906,-3849.93353322,0.000199,2]
[408193220,1773203440917,-1289.64,0.0001997,2]
[408193221,1773203440926,-119496.68907408,0.0001998,2]
[408193222,1773203440935,-151.0,0.00019997,2]
[408193223,1773203440944,-320822.25307707,0.0002,2]
[408193235,1773203445532,-1000.0,0.00018,2]
[408193236,1773203445542,-1000.0,0.00018,2]
[408193237,1773203445551,-167349.4007312,0.0002,2]
[408193238,1773203445586,-572.01969778,0.0002,2]
[408193239,1773203445598,-1893.12,0.0002,2]
[408193240,1773203445914,-257.550636,0.0002,2]
[408193241,1773203446056,-202058.32237615,0.0002,2]
[408193246,1773203807213,150.0,0.00013241,30]
[408193247,1773203836994,500.0,8.6e-05,2]
[408193248,1773203837485,500.0,8.6e-05,2]
[408193249,1773203843054,500.0,8.6e-05,2]
[408193250,1773203847489,500.0,8.6e-05,2]
[408193251,1773203850770,500.0,8.6e-05,2]
[408193252,1773204121196,150.0,0.00013052,30]
[408193262,1773204631854,-150.0,0.00013551,2]
[408193263,1773204631865,-261.0,0.00013551,2]
[408193264,1773204631874,-150.0,0.00013781,2]
[408193265,1773204631884,-368.99,0.00013907,2]
[408193266,1773204631893,-3009.71,0.00013919,2]
[408193267,1773204631903,-300.0,0.00013922,2]
[408193269,1773204631912,-371.020656,0.0001406,7]
[408193271,1773204631921,-500.0,0.00014273,2]
[408193272,1773204631930,-1200.0,0.00014294,2]
[408193274,1773204631939,-300.0,0.00014295,2]
[408193276,1773204631947,-1200.0,0.00014295,2]
[408193278,1773204631957,-300.0,0.00014295,2]
[408193280,1773204631966,-300.0,0.00014295,2]
[408193283,1773204631975,-342.0208413,0.00014296,2]
[408193286,1773204631984,-23544.18,0.00014296,2]
[408193289,1773204631993,-4198.74290208,0.00014387,2]
[408193291,1773204632006,-600.0,0.00014387,2]
[408193293,1773204632015,-250.0,0.00014477,2]
[408193295,1773204632025,-483.23283684,0.00014487,2]
[408193297,1773204632034,-483.23283684,0.00014487,2]
[408193299,1773204632044,-483.23283684,0.00014487,2]
[408193301,1773204632053,-250.0,0.00014651,2]
[408193303,1773204632062,-5593.2,0.00014657,2]
[408193305,1773204632071,-8377.33690786,0.00014773,2]
[408193307,1773204632081,-1000.0,0.00014821,2]
[408193309,1773204632090,-150.0,0.00014822,2]
[408193311,1773204632099,-7655.43,0.00014849,2]
[408193312,1773204632108,-1034.04,0.00014855,2]
[408193313,1773204632117,-21703.56,0.00014855,2]
[408193314,1773204632127,-150.99,0.00014855,2]
[408193315,1773204632135,-62197.56,0.00014872,2]
[408193316,1773204632144,-9999.99,0.00014872,2]
[408193317,1773204632153,-299.99,0.00014873,2]
[408193318,1773204632163,-6804.72902603,0.00014873,2]
[408193319,1773204632174,-3195.26097397,0.00014873,2]
[408193320,1773204632183,-547.09,0.00014873,2]
[408193321,1773204632192,-488.44190361,0.00014873,2]
[408193322,1773204632213,-13.24131043,0.00014873,2]
[408193323,1773204632223,-500.0,0.00014873,2]
[408193324,1773204632232,-500.59506697,0.00014873,2]
[408193325,1773204632241,-500.0,0.0001489,2]
[408193326,1773204632250,-342.83648688,0.0001489,2]
[408193327,1773204632260,-601.10612814,0.0001489,2]
[408193328,1773204632269,-462.51528708,0.0001489,2]
[408193329,1773204632279,-500.0,0.0001489,2]
[408193330,1773204632288,-556.45489449,0.0001489,2]
[408193331,1773204632298,-500.0,0.0001489,2]
[408193332,1773204632308,-500.0,0.0001489,2]
[408193333,1773204632317,-485.32992184,0.0001489,2]
[408193334,1773204632327,-500.0,0.0001489,2]
[408193335,1773204632336,-500.0,0.0001489,2]
[408193336,1773204632345,-500.0,0.0001489,2]
[408193337,1773204632354,-500.0,0.0001489,2]
[408193338,1773204632364,-500.0,0.0001489,2]
[408193339,1773204632373,-202.38527942,0.00014891,2]
[408193340,1773204632382,-500.0,0.00014891,2]
[408193341,1773204632391,-500.0,0.00014891,2]
[408193342,1773204632400,-500.0,0.00014891,2]
[408193343,1773204632410,-523.57937133,0.00014891,2]
[408193344,1773204632419,-500.0,0.00014891,2]
[408193345,1773204632429,-500.0,0.00014891,2]
[408193346,1773204632438,-500.0,0.00014891,2]
[408193347,1773204632447,-519.676586,0.00014891,2]
[408193348,1773204632457,-151.0,0.00014891,2]
[408193349,1773204632468,-151.0,0.00014891,2]
[408193350,1773204632477,-151.0,0.00014891,2]
[408193351,1773204632486,-177.95839125,0.00014891,2]
[408193352,1773204632495,-3103.1806861,0.00014899,2]
[408193367,1773204640091,-292.98450279,0.000148,2]
[408193368,1773204640100,-1893.19843466,0.00014899,2]
[408193369,1773204640110,-117547.8509,0.000149,2]
[408193370,1773204640119,-300.0,0.00014906,2]
[408193371,1773204640128,-156.0,0.00014948,2]
[408193372,1773204640137,-199.0,0.0001495,2]
[408193373,1773204640146,-1008.0,0.00014975,2]
[408193374,1773204640155,-230.51,0.00015,2]
[408193375,1773204640165,-250.0,0.00015,2]
[408193376,1773204640174,-368.34227954,0.00015,30]
[408193377,1773204640183,-500.0,0.00015,30]
[408193378,1773204640192,-500.0,0.00015,30]
[408193379,1773204640201,-514.8086731,0.00015,30]
[408193380,1773204640211,-500.0,0.00015,30]
[408193381,1773204640220,-500.0,0.00015,30]
[408193382,1773204640230,-500.0,0.00015,30]
[408193383,1773204640239,-500.0,0.00015,30]
[408193384,1773204640249,-506.55607891,0.00015,30]
[408193385,1773204640258,-501.56694293,0.00015,30]
[408193386,1773204640268,-508.78295767,0.00015,30]
[408193387,1773204640277,-1174.0,0.00015013,2]
[408193388,1773204640286,-425.0,0.00015013,2]
[408193389,1773204640295,-200.0,0.00015015,2]
[408193390,1773204640304,-880.0,0.00015043,2]
[408193391,1773204640314,-9881.97,0.00015196,2]
[408193392,1773204640323,-303.0,0.00015272,2]
[408193393,1773204640333,-230.51,0.00015274,2]
[408193394,1773204640342,-221.8,0.00015301,3]
[408193395,1773204640351,-8377.33690783,0.00015343,2]
[408193397,1773204640361,-230.53,0.00015548,2]
[408193398,1773204640370,-420.0,0.00015657,2]
[408193399,1773204640380,-1680.0,0.00015723,2]
[408193400,1773204640389,-5000.0,0.00015725,2]
[408193401,1773204640400,-600.0,0.00015725,2]
[408193402,1773204640409,-503.31767503,0.00015726,2]
[408193403,1773204640420,-250.0,0.00015726,2]
[408193404,1773204640431,-287.27422917,0.00015726,2]
[408193405,1773204640441,-5000.0,0.00015726,2]
[408193406,1773204640451,-600.0,0.00015726,2]
[408193407,1773204640461,-8377.33690783,0.00015912,2]
[408193408,1773204640470,-255.0,0.00015948,2]
[408193409,1773204640479,-35522.368,0.00016016,2]
[408193410,1773204640489,-164.9948094,0.00016073,2]
[408193411,1773204640499,-500.0,0.00016115,2]
[408193412,1773204640508,-507.80320873,0.00016115,2]
[408193413,1773204640519,-500.0,0.00016115,2]
[408193414,1773204640531,-500.0,0.00016115,2]
[408193415,1773204640541,-500.0,0.00016115,2]
[408193416,1773204640550,-500.0,0.00016115,2]
[408193417,1773204640559,-500.0,0.00016115,2]
[408193418,1773204640569,-500.0,0.00016115,2]
[408193419,1773204640578,-500.0,0.00016115,2]
[408193420,1773204640588,-500.0,0.00016115,2]
[408193421,1773204640597,-300.74190287,0.00016123,2]
[408193422,1773204640607,-300.0,0.00016123,2]
[408193423,1773204640616,-491.61562808,0.00016273,2]
[408193424,1773204640626,-1133.38,0.00016298,2]
[408193425,1773204640635,-500.0,0.00016409,2]
[408193426,1773204640644,-500.0,0.00016409,2]
[408193427,1773204640653,-500.0,0.00016409,2]
[408193428,1773204640662,-500.0,0.00016409,2]
[408193429,1773204640672,-500.0,0.00016409,2]
[408193430,1773204640681,-500.0,0.00016409,2]
[408193431,1773204640691,-8377.33690783,0.00016482,2]
[408193432,1773204640700,-179.83,0.00016566,2]
[408193433,1773204640709,-150.0,0.00016708,2]
[408193434,1773204640718,-463.77582,0.00016872,7]
[408193435,1773204640729,-502.0,0.00017,2]
[408193436,1773204640739,-166.66,0.00017036,2]
[408193437,1773204640748,-8377.33690783,0.00017052,2]
[408193438,1773204640758,-433.0,0.00017164,2]
[408193439,1773204640767,-2351.0,0.00017296,2]
[408193440,1773204640777,-1883.94,0.00017505,2]
[408193441,1773204640787,-166.66,0.00017598,2]
[408193442,1773204640796,-8377.33690783,0.00017621,2]
[408193443,1773204640806,-190.93,0.000178,2]
[408193444,1773204640823,-800.9737091,0.00017808,2]
[408193445,1773204640842,-534.3228567,0.000179,2]
[408193446,1773204640864,-179.83,0.00017936,2]
[408193447,1773204640873,-500.0,0.00017999,2]
[408193448,1773204640882,-500.0,0.00017999,2]